lending/lending_fUSD_20250121
["ID","MTS","AMOUNT","RATE_DAILY","PERIOD"]
[349826969,1737453067730,-500.0,0.00020273,2]
[349826970,1737453067739,-2866.42,0.00020273,2]
[349826971,1737453067750,-500.0,0.00020273,2]
[349826972,1737453067761,-771.9,0.00020273,2]
[349826973,1737453067771,-958.34,0.00020273,2]
[349826974,1737453067780,-500.0,0.00020273,2]
[349826975,1737453067790,-692.7,0.00020273,2]
[349826976,1737453067799,-731.13,0.00020273,2]
[349826977,1737453067811,-500.0,0.00020273,2]
[349826978,1737453067822,-500.0,0.00020273,2]
[349826979,1737453067832,-701.64,0.00020273,2]
[349826980,1737453067842,-500.0,0.00020273,2]
[349826981,1737453067851,-904.45,0.00020273,2]
[349826982,1737453067860,-1764.52,0.00020273,2]
[349826983,1737453067869,-500.0,0.00020273,2]
[349826984,1737453067878,-500.0,0.00020273,2]
[349826985,1737453067889,-500.0,0.00020273,2]
[349826986,1737453067911,-895.45,0.00020273,2]
[349826987,1737453067922,-1026.43,0.00020273,2]
[349826988,1737453067932,-500.0,0.00020273,2]
[349826989,1737453067942,-2756.16,0.00020273,2]
[349826990,1737453067952,-1553.04,0.00020273,2]
[349826991,1737453067962,-500.0,0.00020273,2]
[349826992,1737453067972,-500.0,0.00020273,2]
[349826993,1737453067982,-500.0,0.00020273,2]
[349826994,1737453067992,-500.0,0.00020273,2]
[349826995,1737453068002,-500.0,0.00020273,2]
[349826996,1737453068012,-2046.98,0.00020273,2]
[349826997,1737453068021,-500.0,0.00020273,2]
[349826998,1737453068031,-2545.78,0.00020273,2]
[349826999,1737453068041,-500.0,0.00020273,2]
[349827000,1737453068051,-577.76656227,0.00020273,2]
[349827001,1737453068060,-2648.9,0.00020273,2]
[349827002,1737453068070,-500.0,0.00020273,2]
[349827003,1737453068080,-500.0,0.00020273,2]
[349827004,1737453068089,-771.88,0.00020273,2]
[349827005,1737453068099,-500.0,0.00020273,2]
[349827006,1737453068108,-500.0,0.00020273,2]
[349827007,1737453068118,-1252.0,0.00020273,2]
[349827008,1737453068127,-500.0,0.00020273,2]
[349827009,1737453068137,-2167.31,0.00020273,2]
[349827010,1737453068147,-500.0,0.00020273,2]
[349827011,1737453068157,-500.0,0.00020273,2]
[349827012,1737453068167,-687.19,0.00020273,2]
[349827013,1737453068177,-1932.68,0.00020273,2]
[349827014,1737453068187,-500.0,0.00020273,2]
[349827015,1737453068197,-500.0,0.00020273,2]
[349827016,1737453068206,-620.48,0.00020273,2]
[349827017,1737453068216,-500.0,0.00020273,2]
[349827018,1737453068226,-500.0,0.00020273,2]
[349827019,1737453068235,-12829.19937418,0.00020288,2]
[349827020,1737453068245,-200.35494415,0.00020293,2]
[349827021,1737453068256,-169.91,0.00020316,2]
[349827022,1737453068266,-181.63,0.00020356,2]
[349827023,1737453068276,-150.0,0.00020415,2]
[349827024,1737453068286,-500.0,0.00020446,2]
[349827025,1737453068296,-591.79,0.00020446,2]
[349827026,1737453068305,-898.45,0.00020446,2]
[349827027,1737453068315,-1154.75,0.00020446,2]
[349827028,1737453068325,-500.0,0.00020446,2]
[349827029,1737453068335,-1000.0,0.00020446,2]
[349827030,1737453068345,-1093.7,0.00020446,2]
[349827031,1737453068355,-545.47,0.00020446,2]
[349827032,1737453068365,-500.0,0.00020446,2]
[349827033,1737453068375,-1476.07,0.00020446,2]
[349827034,1737453068385,-200.35494415,0.00020471,2]
[349827035,1737453068394,-724.08219733,0.00020476,2]
[349827036,1737453068404,-37706.63317993,0.00020511,2]
[349827037,1737453068414,-250.0,0.00020521,2]
[349827038,1737453068425,-500.0,0.00020547,2]
[349827039,1737453068434,-500.0,0.00020547,2]
[349827040,1737453068445,-195.280008,0.00020547,2]
[349827041,1737453068455,-500.0,0.00020547,2]
[349827042,1737453068465,-1852.7,0.00020547,2]
[349827043,1737453068475,-500.0,0.00020547,2]
[349827044,1737453068484,-500.0,0.00020547,2]
[349827045,1737453068494,-500.0,0.00020547,2]
[349827046,1737453068504,-569.36642969,0.00020547,2]
[349827047,1737453068513,-500.0,0.00020547,2]
[349827048,1737453068522,-534.83974492,0.00020547,2]
[349827049,1737453068531,-500.0,0.00020547,2]
[349827050,1737453068541,-500.0,0.00020547,2]
[349827051,1737453068551,-500.0,0.00020547,2]
[349827052,1737453068560,-500.0,0.00020547,2]
[349827053,1737453068569,-500.0,0.00020547,2]
[349827054,1737453068579,-575.72,0.00020547,2]
[349827055,1737453068588,-500.0,0.00020547,2]
[349827056,1737453068597,-500.0,0.00020547,2]
[349827057,1737453068607,-500.0,0.00020547,2]
[349827058,1737453068616,-500.0,0.00020547,2]
[349827059,1737453068626,-214.57656946,0.00020547,2]
[349827060,1737453068635,-500.0,0.00020547,2]
[349827061,1737453068644,-500.0,0.00020547,2]
[349827062,1737453068653,-769.26,0.00020547,2]
[349827063,1737453068664,-500.0,0.00020547,2]
[349827064,1737453068680,-166.93943656,0.00020547,2]
[349827065,1737453068689,-500.0,0.00020547,2]
[349827066,1737453068699,-500.0,0.00020547,2]
[349827067,1737453068708,-500.0,0.00020547,2]
[349827068,1737453068718,-500.0,0.00020547,2]
[349827069,1737453068729,-500.0,0.00020547,2]
[349827070,1737453068761,-577.58,0.00020547,2]
[349827071,1737453068771,-500.0,0.00020547,2]
[349827072,1737453068781,-500.0,0.00020547,2]
[349827073,1737453068791,-500.0,0.00020547,2]
[349827074,1737453068802,-500.0,0.00020547,2]
[349827075,1737453068811,-500.0,0.00020547,2]
[349827076,1737453068822,-500.0,0.00020547,2]
[349827077,1737453068832,-500.0,0.00020547,2]
[349827078,1737453068841,-500.0,0.00020547,2]
[349827079,1737453068851,-500.0,0.00020547,2]
[349827080,1737453068861,-500.0,0.00020547,2]
[349827081,1737453068870,-500.0,0.00020547,2]
[349827082,1737453068880,-500.0,0.00020547,2]
[349827083,1737453068890,-500.0,0.00020547,2]
[349827084,1737453068899,-500.0,0.00020547,2]
[349827085,1737453068908,-500.0,0.00020547,2]
[349827086,1737453068918,-500.0,0.00020547,2]
[349827087,1737453068928,-500.0,0.00020547,2]
[349827088,1737453068938,-500.0,0.00020547,2]
[349827089,1737453068947,-500.0,0.00020547,2]
[349827090,1737453068956,-500.0,0.00020547,2]
[349827091,1737453068965,-500.0,0.00020547,2]
[349827092,1737453068975,-519.89,0.00020547,2]
[349827093,1737453068984,-522.63,0.00020547,2]
[349827094,1737453068993,-500.0,0.00020547,2]
[349827095,1737453069002,-500.0,0.00020547,2]
[349827096,1737453069012,-500.0,0.00020547,2]
[349827097,1737453069021,-500.0,0.00020547,2]
[349827098,1737453069030,-500.0,0.00020547,2]
[349827099,1737453069041,-488.54983063,0.00020547,2]
[349827100,1737453069050,-1055.98,0.00020547,2]
[349827101,1737453069059,-504.74722128,0.00020547,2]
[349827102,1737453069069,-922.8,0.00020547,2]
[349827103,1737453069081,-540.51144588,0.00020547,2]
[349827104,1737453069091,-500.0,0.00020547,2]
[349827105,1737453069101,-500.0,0.00020547,2]
[349827106,1737453069111,-500.0,0.00020547,2]
[349827107,1737453069121,-500.0,0.00020547,2]
[349827108,1737453069132,-698.92,0.00020547,2]
[349827109,1737453069142,-500.0,0.00020547,2]
[349827110,1737453069152,-506.74137757,0.00020547,2]
[349827111,1737453069162,-500.0,0.00020547,2]
[349827112,1737453069172,-500.0,0.00020547,2]
[349827113,1737453069183,-500.0,0.00020547,2]
[349827114,1737453069192,-500.0,0.00020547,2]
[349827115,1737453069202,-500.0,0.00020547,2]
[349827116,1737453069212,-500.0,0.00020547,2]
[349827117,1737453069221,-500.0,0.00020547,2]
[349827118,1737453069231,-500.0,0.00020547,2]
[349827119,1737453069241,-500.0,0.00020547,2]
[349827120,1737453069251,-500.0,0.00020547,2]
[349827121,1737453069261,-949.13,0.00020547,2]
[349827122,1737453069381,-500.0,0.00020547,2]
[349827123,1737453069391,-500.0,0.00020547,2]
[349827124,1737453069400,-632.61,0.00020547,2]
[349827125,1737453069409,-500.0,0.00020547,2]
[349827126,1737453069419,-500.0,0.00020547,2]
[349827127,1737453069429,-500.0,0.00020547,2]
[349827128,1737453069439,-500.0,0.00020547,2]
[349827129,1737453069449,-500.0,0.00020547,2]
[349827130,1737453069459,-500.0,0.00020547,2]
[349827131,1737453069469,-500.0,0.00020547,2]
[349827132,1737453069478,-500.0,0.00020547,2]
[349827133,1737453069487,-500.0,0.00020547,2]
[349827134,1737453069497,-500.37,0.00020547,2]
[349827135,1737453069506,-500.0,0.00020547,2]
[349827136,1737453069517,-500.0,0.00020547,2]
[349827137,1737453069526,-405.65025118,0.00020547,2]
[349827138,1737453069537,-500.0,0.00020547,2]
[349827139,1737453069547,-534.504669,0.00020547,2]
[349827140,1737453069557,-500.0,0.00020547,2]
[349827141,1737453069567,-602.49,0.00020547,2]
[349827142,1737453069576,-500.0,0.00020547,2]
[349827143,1737453069593,-500.0,0.00020547,2]
[349827144,1737453069603,-500.0,0.00020547,2]
[349827145,1737453069613,-500.0,0.00020547,2]
[349827146,1737453069623,-500.0,0.00020547,2]
[349827147,1737453069633,-500.0,0.00020547,2]
[349827148,1737453069642,-500.0,0.00020547,2]
[349827149,1737453069652,-500.0,0.00020547,2]
[349827150,1737453069662,-500.0,0.00020547,2]
[349827151,1737453069672,-500.0,0.00020547,2]
[349827152,1737453069682,-855.720455,0.00020547,2]
[349827153,1737453069692,-515.35,0.00020547,2]
[349827154,1737453069701,-500.0,0.00020547,2]
[349827155,1737453069711,-331.33888958,0.00020547,2]
[349827156,1737453069721,-500.0,0.00020547,2]
[349827157,1737453069730,-600.10223064,0.00020547,2]
[349827158,1737453069739,-500.0,0.00020547,2]
[349827159,1737453069752,-500.0,0.00020547,2]
[349827160,1737453069762,-500.0,0.00020547,2]
[349827161,1737453069772,-500.0,0.00020547,2]
[349827162,1737453069781,-500.0,0.00020547,2]
[349827163,1737453069790,-517.29758797,0.00020547,2]
[349827164,1737453069799,-500.0,0.00020547,2]
[349827165,1737453069808,-500.0,0.00020547,2]
[349827166,1737453069817,-174.0861731,0.00020547,2]
[349827167,1737453069828,-500.0,0.00020547,2]
[349827168,1737453069837,-500.0,0.00020547,2]
[349827169,1737453069846,-500.0,0.00020547,2]
[349827170,1737453069855,-500.0,0.00020547,2]
[349827171,1737453069865,-500.0,0.00020547,2]
[349827172,1737453069874,-500.0,0.00020547,2]
[349827173,1737453069884,-500.0,0.00020547,2]
[349827174,1737453069893,-526.06,0.00020547,2]
[349827175,1737453069902,-500.0,0.00020547,2]
[349827176,1737453069912,-500.0,0.00020547,2]
[349827177,1737453069922,-500.0,0.00020547,2]
[349827178,1737453069933,-500.0,0.00020547,2]
[349827179,1737453069942,-512.79683199,0.00020547,2]
[349827180,1737453069951,-500.0,0.00020547,2]
[349827181,1737453069961,-500.0,0.00020547,2]
[349827182,1737453069970,-500.0,0.00020547,2]
[349827183,1737453069979,-500.0,0.00020547,2]
[349827184,1737453069988,-608.3,0.00020547,2]
[349827185,1737453069997,-662.46,0.00020547,2]
[349827186,1737453070006,-500.0,0.00020547,2]
[349827187,1737453070015,-500.0,0.00020547,2]
[349827188,1737453070025,-500.0,0.00020547,2]
[349827189,1737453070034,-500.0,0.00020547,2]
[349827190,1737453070043,-511.79261835,0.00020547,2]
[349827191,1737453070052,-500.0,0.00020547,2]
[349827192,1737453070061,-500.0,0.00020547,2]
[349827193,1737453070070,-500.0,0.00020547,2]
[349827194,1737453070079,-500.0,0.00020547,2]
[349827195,1737453070088,-500.0,0.00020547,2]
[349827196,1737453070097,-500.0,0.00020547,2]
[349827197,1737453070107,-500.0,0.00020547,2]
[349827198,1737453070117,-547.52,0.00020547,2]
[349827199,1737453070126,-500.0,0.00020547,2]
[349827200,1737453070136,-512.07397301,0.00020547,2]
[349827201,1737453070145,-500.0,0.00020547,2]
[349827202,1737453070154,-623.36,0.00020547,2]
[349827203,1737453070163,-500.0,0.00020547,2]
[349827204,1737453070173,-500.0,0.00020547,2]
[349827205,1737453070182,-500.0,0.00020547,2]
[349827206,1737453070191,-500.0,0.00020547,2]
[349827207,1737453070200,-500.0,0.00020547,2]
[349827208,1737453070209,-500.0,0.00020547,2]
[349827209,1737453070218,-500.0,0.00020547,2]
[349827210,1737453070227,-500.0,0.00020547,2]
[349827211,1737453070236,-576.69,0.00020547,2]
[349827212,1737453070245,-500.0,0.00020547,2]
[349827213,1737453070255,-500.0,0.00020547,2]
[349827214,1737453070264,-500.0,0.00020547,2]
[349827215,1737453070274,-500.0,0.00020547,2]
[349827216,1737453070283,-500.0,0.00020547,2]
[349827217,1737453070292,-500.0,0.00020547,2]
[349827218,1737453070301,-500.0,0.00020547,2]
[349827219,1737453070311,-177.87754488,0.00020547,2]
[349827220,1737453070321,-500.0,0.00020547,2]
[349827221,1737453070330,-500.0,0.00020547,2]
[349827222,1737453070340,-500.0,0.00020547,2]
[349827223,1737453070349,-300.0,0.00020547,2]
[349827224,1737453070359,-500.0,0.00020547,2]
[349827225,1737453070368,-505.6582109,0.00020547,2]
[349827226,1737453070377,-500.0,0.00020547,2]
[349827227,1737453070386,-500.0,0.00020547,2]
[349827228,1737453070396,-705.57,0.00020547,2]
[349827229,1737453070407,-508.34,0.00020547,2]
[349827230,1737453070416,-500.0,0.00020547,2]
[349827231,1737453070432,-788.13,0.00020547,2]
[349827232,1737453070444,-500.0,0.00020547,2]
[349827233,1737453070455,-500.0,0.00020547,2]
[349827234,1737453070464,-1172.49,0.00020547,2]
[349827235,1737453070474,-507.49,0.00020547,2]
[349827236,1737453070484,-500.0,0.00020547,2]
[349827237,1737453070493,-761.5,0.00020547,2]
[349827238,1737453070503,-500.0,0.00020547,2]
[349827239,1737453070512,-500.0,0.00020547,2]
[349827240,1737453070521,-500.0,0.00020547,2]
[349827241,1737453070530,-500.0,0.00020547,2]
[349827242,1737453070539,-3672.11,0.00020547,2]
[349827243,1737453070549,-500.0,0.00020547,2]
[349827244,1737453070558,-509.73201618,0.00020547,2]
[349827245,1737453070568,-500.0,0.00020547,2]
[349827246,1737453070577,-2841.84,0.00020547,2]
[349827247,1737453070587,-1974.21,0.00020547,2]
[349827248,1737453070596,-500.0,0.00020547,2]
[349827249,1737453070606,-500.0,0.00020547,2]
[349827250,1737453070616,-1158.66,0.00020547,2]
[349827251,1737453070625,-628.17,0.00020547,2]
[349827252,1737453070635,-500.0,0.00020547,2]
[349827253,1737453070645,-910.49,0.00020547,2]
[349827254,1737453070654,-500.0,0.00020547,2]
[349827255,1737453070664,-8504.98,0.00020547,2]
[349827256,1737453070673,-500.0,0.00020547,2]
[349827257,1737453070684,-1875.9,0.00020547,2]
[349827258,1737453070694,-500.0,0.00020547,2]
[349827259,1737453070703,-1593.64,0.00020547,2]
[349827260,1737453070713,-826.77,0.00020547,2]
[349827261,1737453070723,-500.0,0.00020547,2]
[349827262,1737453070732,-500.0,0.00020547,2]
[349827263,1737453070742,-648.73,0.00020547,2]
[349827264,1737453070754,-1235.86,0.00020547,2]
[349827265,1737453070763,-500.0,0.00020547,2]
[349827266,1737453070772,-500.0,0.00020547,2]
[349827267,1737453070781,-500.0,0.00020547,2]
[349827268,1737453070879,-1175.52,0.00020547,2]
[349827269,1737453070888,-500.0,0.00020547,2]
[349827270,1737453070897,-500.0,0.00020547,2]
[349827271,1737453070907,-500.0,0.00020547,2]
[349827272,1737453070916,-1631.61,0.00020547,2]
[349827273,1737453070926,-651.5,0.00020547,2]
[349827274,1737453070936,-500.0,0.00020547,2]
[349827275,1737453070945,-696.16,0.00020547,2]
[349827276,1737453070954,-802.48,0.00020547,2]
[349827277,1737453070963,-500.0,0.00020547,2]
[349827278,1737453070973,-500.0,0.00020547,2]
[349827279,1737453070982,-802.07,0.00020547,2]
[349827280,1737453070991,-500.0,0.00020547,2]
[349827281,1737453071000,-500.0,0.00020547,2]
[349827282,1737453071010,-1285.14,0.00020547,2]
[349827283,1737453071019,-1752.0,0.00020547,2]
[349827284,1737453071028,-500.0,0.00020547,2]
[349827285,1737453071038,-975.02,0.00020547,2]
[349827286,1737453071047,-500.0,0.00020547,2]
[349827287,1737453071056,-500.0,0.00020547,2]
[349827288,1737453071065,-500.0,0.00020547,2]
[349827289,1737453071074,-1426.9,0.00020547,2]
[349827290,1737453071083,-500.0,0.00020547,2]
[349827291,1737453071093,-500.0,0.00020547,2]
[349827292,1737453071103,-500.0,0.00020547,2]
[349827293,1737453071112,-500.0,0.00020547,2]
[349827294,1737453071122,-500.0,0.00020547,2]
[349827295,1737453071131,-500.0,0.00020547,2]
[349827296,1737453071141,-574.98,0.00020547,2]
[349827297,1737453071150,-500.0,0.00020547,2]
[349827298,1737453071159,-515.49,0.00020547,2]
[349827299,1737453071168,-500.0,0.00020547,2]
[349827300,1737453071178,-500.0,0.00020547,2]
[349827301,1737453071187,-500.0,0.00020547,2]
[349827302,1737453071196,-1497.19,0.00020547,2]
[349827303,1737453071206,-1061.57,0.00020547,2]
[349827304,1737453071215,-500.0,0.00020547,2]
[349827305,1737453071224,-500.0,0.00020547,2]
[349827306,1737453071233,-500.0,0.00020547,2]
[349827307,1737453071243,-1810.13,0.00020547,2]
[349827308,1737453071252,-265.49391343,0.00020547,2]
[349827309,1737453071262,-500.0,0.00020547,2]
[349827310,1737453071271,-500.0,0.00020547,2]
[349827311,1737453071280,-500.0,0.00020547,2]
[349827312,1737453071290,-2047.13,0.00020547,2]
[349827313,1737453071299,-794.2,0.00020547,2]
[349827314,1737453071309,-2863.94,0.00020547,2]
[349827315,1737453071318,-772.25,0.00020547,2]
[349827316,1737453071328,-1251.75,0.00020547,2]
[349827317,1737453071337,-500.0,0.00020547,2]
[349827318,1737453071347,-500.0,0.00020547,2]
[349827319,1737453071357,-660.36,0.00020547,2]
[349827320,1737453071366,-500.0,0.00020547,2]
[349827321,1737453071375,-616.64,0.00020547,2]
[349827322,1737453071384,-1546.15,0.00020547,2]
[349827323,1737453071393,-512.86236518,0.00020547,2]
[349827324,1737453071403,-500.0,0.00020547,2]
[349827325,1737453071412,-500.0,0.00020547,2]
[349827326,1737453071421,-500.0,0.00020547,2]
[349827327,1737453071433,-1902.27,0.00020547,2]
[349827328,1737453071443,-500.0,0.00020547,2]
[349827329,1737453071453,-500.0,0.00020547,2]
[349827330,1737453071463,-2420.73,0.00020547,2]
[349827331,1737453071474,-1018.36,0.00020547,2]
[349827332,1737453071483,-531.54276559,0.00020547,2]
[349827333,1737453071493,-500.0,0.00020547,2]
[349827334,1737453071502,-500.0,0.00020547,2]
[349827335,1737453071511,-500.0,0.00020547,2]
[349827336,1737453071520,-582.48,0.00020547,2]
[349827337,1737453071530,-3026.82,0.00020547,2]
[349827338,1737453071539,-500.0,0.00020547,2]
[349827339,1737453071549,-1503.31,0.00020547,2]
[349827340,1737453071558,-500.0,0.00020547,2]
[349827341,1737453071567,-1719.86,0.00020547,2]
[349827342,1737453071577,-500.0,0.00020547,2]
[349827343,1737453071586,-500.0,0.00020547,2]
[349827344,1737453071595,-500.0,0.00020547,2]
[349827345,1737453071605,-544.81,0.00020547,2]
[349827346,1737453071614,-500.0,0.00020547,2]
[349827347,1737453071623,-500.0,0.00020547,2]
[349827348,1737453071633,-582.92,0.00020547,2]
[349827349,1737453071642,-500.0,0.00020547,2]
[349827350,1737453071651,-1092.14,0.00020547,2]
[349827351,1737453071661,-500.0,0.00020547,2]
[349827352,1737453071670,-500.0,0.00020547,2]
[349827353,1737453071680,-500.0,0.00020547,2]
[349827354,1737453071689,-1250.96,0.00020547,2]
[349827355,1737453071699,-1136.38,0.00020547,2]
[349827356,1737453071708,-1590.94,0.00020547,2]
[349827357,1737453071717,-500.0,0.00020547,2]
[349827358,1737453071726,-500.0,0.00020547,2]
[349827359,1737453071735,-500.0,0.00020547,2]
[349827360,1737453071745,-2747.31,0.00020547,2]
[349827361,1737453071757,-500.0,0.00020547,2]
[349827362,1737453071766,-500.0,0.00020547,2]
[349827363,1737453071775,-3033.52,0.00020547,2]
[349827364,1737453071785,-2010.66,0.00020547,2]
[349827365,1737453071794,-500.0,0.00020547,2]
[349827366,1737453071803,-500.0,0.00020547,2]
[349827367,1737453071812,-685.44,0.00020547,2]
[349827368,1737453071822,-973.66,0.00020547,2]
[349827369,1737453071833,-500.0,0.00020547,2]
[349827370,1737453071843,-500.0,0.00020547,2]
[349827371,1737453071853,-1123.99,0.00020547,2]
[349827372,1737453071862,-500.0,0.00020547,2]
[349827373,1737453071872,-589.01,0.00020547,2]
[349827374,1737453071882,-500.0,0.00020547,2]
[349827375,1737453071891,-1065.57,0.00020547,2]
[349827376,1737453071900,-500.0,0.00020547,2]
[349827377,1737453071910,-500.0,0.00020547,2]
[349827378,1737453071919,-500.0,0.00020547,2]
[349827379,1737453071931,-984.06,0.00020547,2]
[349827380,1737453071941,-1101.11,0.00020547,2]
[349827381,1737453071950,-321.87749717,0.00020547,2]
[349827382,1737453071960,-2866.42,0.00020547,2]
[349827383,1737453071970,-503.74647457,0.00020547,2]
[349827384,1737453071979,-771.9,0.00020547,2]
[349827385,1737453071989,-958.34,0.00020547,2]
[349827386,1737453071998,-500.0,0.00020547,2]
[349827387,1737453072008,-692.7,0.00020547,2]
[349827388,1737453072017,-731.13,0.00020547,2]
[349827389,1737453072027,-500.0,0.00020547,2]
[349827390,1737453072036,-500.0,0.00020547,2]
[349827391,1737453072045,-701.64,0.00020547,2]
[349827392,1737453072055,-500.0,0.00020547,2]
[349827393,1737453072065,-904.45,0.00020547,2]
[349827394,1737453072074,-1764.52,0.00020547,2]
[349827395,1737453072084,-500.0,0.00020547,2]
[349827396,1737453072093,-500.0,0.00020547,2]
[349827397,1737453072103,-500.0,0.00020547,2]
[349827398,1737453072112,-895.45,0.00020547,2]
[349827399,1737453072121,-1026.43,0.00020547,2]
[349827400,1737453072130,-500.0,0.00020547,2]
[349827401,1737453072139,-2756.16,0.00020547,2]
[349827402,1737453072149,-1553.04,0.00020547,2]
[349827403,1737453072158,-500.0,0.00020547,2]
[349827404,1737453072168,-500.0,0.00020547,2]
[349827405,1737453072179,-500.0,0.00020547,2]
[349827406,1737453072189,-2046.98,0.00020547,2]
[349827407,1737453072199,-500.0,0.00020547,2]
[349827408,1737453072208,-2545.78,0.00020547,2]
[349827409,1737453072218,-500.0,0.00020547,2]
[349827410,1737453072227,-2648.9,0.00020547,2]
[349827411,1737453072237,-500.0,0.00020547,2]
[349827412,1737453072247,-500.0,0.00020547,2]
[349827413,1737453072257,-771.88,0.00020547,2]
[349827414,1737453072266,-500.0,0.00020547,2]
[349827415,1737453072275,-500.0,0.00020547,2]
[349827416,1737453072285,-1252.0,0.00020547,2]
[349827417,1737453072294,-500.0,0.00020547,2]
[349827418,1737453072304,-2167.31,0.00020547,2]
[349827419,1737453072313,-500.0,0.00020547,2]
[349827420,1737453072323,-500.0,0.00020547,2]
[349827421,1737453072333,-687.19,0.00020547,2]
[349827422,1737453072342,-1932.68,0.00020547,2]
[349827423,1737453072351,-500.0,0.00020547,2]
[349827424,1737453072362,-500.0,0.00020547,2]
[349827425,1737453072371,-620.48,0.00020547,2]
[349827426,1737453072381,-196.2463034,0.00020547,2]
[349827427,1737453072390,-500.0,0.00020547,2]
[349827428,1737453072399,-150.0,0.00020589,2]
[349827429,1737453072409,-12829.19937418,0.0002059,2]
[349827430,1737453072418,-198.92480562,0.00020626,2]
[349827431,1737453072430,-200.35494415,0.0002065,2]
[349827432,1737453072440,-150.0,0.00020668,2]
[349827433,1737453072450,-1067.06,0.00020698,2]
[349827434,1737453072460,-150.0,0.000207,2]
[349827435,1737453072470,-500.0,0.0002072,2]
[349827436,1737453072480,-591.79,0.0002072,2]
[349827437,1737453072489,-898.45,0.0002072,2]
[349827438,1737453072498,-1154.75,0.0002072,2]
[349827439,1737453072508,-500.0,0.0002072,2]
[349827440,1737453072518,-1000.0,0.0002072,2]
[349827441,1737453072527,-1093.7,0.0002072,2]
[349827442,1737453072537,-545.47,0.0002072,2]
[349827443,1737453072546,-500.0,0.0002072,2]
[349827444,1737453072556,-1476.07,0.0002072,2]
[349827445,1737453072566,-500.0,0.00020722,2]
[349827446,1737453072575,-150.0,0.00020743,2]
[349827447,1737453072584,-152.0,0.00020798,3]
[349827448,1737453072594,-500.0,0.00020821,2]
[349827449,1737453072603,-500.0,0.00020821,2]
[349827450,1737453072613,-500.0,0.00020821,2]
[349827451,1737453072622,-1852.7,0.00020821,2]
[349827452,1737453072631,-500.0,0.00020821,2]
[349827453,1737453072640,-500.0,0.00020821,2]
[349827454,1737453072650,-500.0,0.00020821,2]
[349827455,1737453072659,-500.0,0.00020821,2]
[349827456,1737453072669,-500.0,0.00020821,2]
[349827457,1737453072680,-500.0,0.00020821,2]
[349827458,1737453072690,-500.0,0.00020821,2]
[349827459,1737453072699,-500.0,0.00020821,2]
[349827460,1737453072708,-500.0,0.00020821,2]
[349827461,1737453072718,-575.72,0.00020821,2]
[349827462,1737453072727,-197.64440499,0.00020821,2]
[349827463,1737453072736,-500.0,0.00020821,2]
[349827464,1737453072745,-500.0,0.00020821,2]
[349827465,1737453072758,-529.46690991,0.00020821,2]
[349827466,1737453072767,-769.26,0.00020821,2]
[349827467,1737453072777,-500.0,0.00020821,2]
[349827468,1737453072786,-500.0,0.00020821,2]